[Event "RUS-ch Blitz Women 2018"]
[Site "Sochi"]
[Date "2018.10.07"]
[Round "7"]
[White "Vasilevich, Tatjana"]
[Black "Lysenko, Margarita"]
[Result "0-1"]
[ECO "E83"]
[WhiteElo "2360"]
[BlackElo "2210"]
[Annotator "NA"]
[PlyCount "88"]
[EventDate "2018.10.07"]
[EventType "swiss"]
[EventCountry "RUS"]
[SourceTitle "playchess.com"]
[Source "ChessBase"]
[SourceQuality "1"]
[TimeControl "180+2"]

1. d4 {[%emt 0:00:00]} Nf6 {[%emt 0:00:00]} 2. c4 {[%emt 0:00:00]} g6 {[%emt 0:00:01]} 3. Nc3 {[%emt 0:00:00]} Bg7 {[%emt 0:00:01]} 4. e4 {[%emt 0:00:01]} O-O {[%emt 0:00:01]} 5. f3 {[%emt 0:00:01]} d6 {[%emt 0:00:02]} 6. Nge2 {[%emt 0:00:02]} Nc6 {[%emt 0:00:05]} 7. Be3 {[%emt 0:00:01]} a6 {[%emt 0:00:02]} 8. Qd2 {[%emt 0:00:02]} Re8 {[%emt 0:00:02]} 9. Rc1 {[%emt 0:00:08]} e5 {[%emt 0:00:56]} 10. d5 {[%emt 0:00:02]} Nd4 {[%emt 0:00:25]} 11. Nxd4 {[%emt 0:00:05]} exd4 {[%emt 0:00:01]} 12. Bxd4 {[%emt 0:00:01]} c5 {[%emt 0:00:07]} 13. dxc6 {[%emt 0:00:17]} bxc6 {[%emt 0:00:02]} 14. Be2 {[%emt 0:00:03]} d5 {[%emt 0:00:11]} 15. cxd5 {[%emt 0:00:01]} cxd5 {[%emt 0:00:01]} 16. exd5 {[%emt 0:00:12]} Bb7 {[%emt 0:00:29]} 17. O-O {[%emt 0:00:15]} Nxd5 {[%emt 0:00:18]} 18. Bxg7 {[%emt 0:00:24]} Kxg7 {[%emt 0:00:02]} 19. Rfd1 {[%emt 0:00:15]} Qb6+ {[%emt 0:00:31]} 20. Kh1 {[%emt 0:00:01]} Ne3 {[%emt 0:00:07]} 21. Qd4+ {[%emt 0:00:05]} Qxd4 {[%emt 0:00:04]} 22. Rxd4 {[%emt 0:00:01]} Rad8 {[%emt 0:00:08]} 23. Rd3 {[%emt 0:00:12]} Rxd3 {[%emt 0:00:04]} 24. Bxd3 {[%emt 0:00:01]} Rd8 {[%emt 0:00:00]} 25. Be4 {[%emt 0:00:09]} Bxe4 {[%emt 0:00:03]} 26. Nxe4 {[%emt 0:00:00]} f5 {[%emt 0:00:02]} 27. Nc5 {[%emt 0:00:47]} Rd2 {[%emt 0:00:03]} 28. Nxa6 {[%emt 0:00:07]} Rxb2 {[%emt 0:00:01]} 29. a4 {[%emt 0:00:02]} Nxg2 {[%emt 0:00:03]} 30. Nc5 {[%emt 0:00:06]} Nh4 {[%emt 0:00:03]} 31. Rf1 {[%emt 0:00:21]} Ra2 {[%emt 0:00:01]} 32. f4 {[%emt 0:00:06]} Kf6 {[%emt 0:00:04]} 33. Kg1 {[%emt 0:00:05]} h6 {[%emt 0:00:01]} 34. h3 {[%emt 0:00:03]} g5 {[%emt 0:00:01]} 35. fxg5+ {[%emt 0:00:02]} hxg5 {[%emt 0:00:01]} 36. Ne4+ {[%emt 0:00:06]} Kg6 {[%emt 0:00:03]} 37. Nc5 {[%emt 0:00:02]} f4 {[%emt 0:00:03]} 38. Rc1 {[%emt 0:00:04]} Nf3+ {[%emt 0:00:02]} 39. Kf1 {[%emt 0:00:01]} Nh2+ {[%emt 0:00:03]} 40. Kg1 {[%emt 0:00:02]} Nf3+ {[%emt 0:00:01]} 41. Kf1 {[%emt 0:00:01]} Kf5 {[%emt 0:00:04]} 42. Nd3 {[%emt 0:00:10]} Nh2+ {[%emt 0:00:02]} 43. Kg1 {[%emt 0:00:02]} Nf3+ {[%emt 0:00:02]} 44. Kf1 {[%emt 0:00:02]} Rxa4 {[%emt 0:00:02]} 0-1

[Event "RUS-ch Blitz Women 2018"]
[Site "Sochi"]
[Date "2018.10.07"]
[Round "7"]
[White "Voit, Daria"]
[Black "Charochkina, Daria"]
[Result "1-0"]
[ECO "A09"]
[WhiteElo "2352"]
[BlackElo "2344"]
[Annotator "ChessBase"]
[PlyCount "89"]
[EventDate "2018.10.07"]
[EventType "swiss"]
[EventCountry "RUS"]
[SourceTitle "playchess.com"]
[Source "ChessBase"]
[SourceQuality "1"]
[TimeControl "180+2"]

1. Nf3 {[%emt 0:00:00]} d5 {[%emt 0:00:00]} 2. c4 {[%emt 0:00:01]} d4 {[%emt 0:00:00]} 3. b4 {[%emt 0:00:01]} g6 {[%emt 0:00:12]} 4. Bb2 {[%emt 0:00:05]} Bg7 {[%emt 0:00:01]} 5. e3 {[%emt 0:00:01]} c5 {[%emt 0:00:02]} 6. bxc5 {[%emt 0:00:02]} Nc6 {[%emt 0:00:12]} 7. exd4 {[%emt 0:00:04]} Nxd4 {[%emt 0:00:04]} 8. Nxd4 {[%emt 0:00:17]} Bxd4 {[%emt 0:00:01]} 9. Nc3 {[%emt 0:00:13]} Nf6 {[%emt 0:00:08]} 10. Be2 {[%emt 0:00:13]} Ne4 {[%emt 0:00:19]} 11. Nxe4 {[%emt 0:00:33]} Bxb2 {[%emt 0:00:01]} 12. Rb1 {[%emt 0:00:02]} Bg7 {[%emt 0:00:01]} 13. O-O {[%emt 0:00:11]} O-O {[%emt 0:00:12]} 14. d3 {[%emt 0:00:07]} Qc7 {[%emt 0:00:10]} 15. Bf3 {[%emt 0:00:05]} Rb8 {[%emt 0:00:04]} 16. Qa4 {[%emt 0:00:04]} a6 {[%emt 0:00:05]} 17. Qb4 {[%emt 0:00:07]} Bd7 {[%emt 0:00:07]} 18. Rfd1 {[%emt 0:00:05]} Bd4 {[%emt 0:00:14]} 19. Qb6 {[%emt 0:00:20]} Qc8 {[%emt 0:00:12]} 20. Qa5 {[%emt 0:00:43]} Bc6 {[%emt 0:00:03]} 21. h3 {[%emt 0:00:04]} Rd8 {[%emt 0:00:07]} 22. Rb3 {[%emt 0:00:06]} Qf5 {[%emt 0:00:37]} 23. Nd2 {[%emt 0:00:10]} Bxf3 {[%emt 0:00:23]} 24. Nxf3 {[%emt 0:00:01]} Bxc5 {[%emt 0:00:01]} 25. d4 {[%emt 0:00:04]} Qc2 {[%emt 0:00:01]} 26. Rbd3 {[%emt 0:00:02]} Bd6 {[%emt 0:00:13]} 27. c5 {[%emt 0:00:03]} Bf4 {[%emt 0:00:01]} 28. Qa3 {[%emt 0:00:04]} Qc4 {[%emt 0:00:04]} 29. Qb3 {[%emt 0:00:04]} Qxb3 {[%emt 0:00:13]} 30. axb3 {[%emt 0:00:01]} e6 {[%emt 0:00:04]} 31. d5 {[%emt 0:00:02]} exd5 {[%emt 0:00:02]} 32. Rxd5 {[%emt 0:00:01]} Rxd5 {[%emt 0:00:03]} 33. Rxd5 {[%emt 0:00:00]} Rc8 {[%emt 0:00:02]} 34. b4 {[%emt 0:00:04]} Rc7 {[%emt 0:00:01]} 35. Nd4 {[%emt 0:00:02]} Kg7 {[%emt 0:00:01]} 36. Nb3 {[%emt 0:00:02]} Re7 {[%emt 0:00:01]} 37. Kf1 {[%emt 0:00:01]} Kf6 {[%emt 0:00:05]} 38. g3 {[%emt 0:00:01]} Bb8 {[%emt 0:00:02]} 39. Na5 {[%emt 0:00:02]} Ke6 {[%emt 0:00:02]} 40. Rd3 {[%emt 0:00:01]} Re8 {[%emt 0:00:04]} 41. Nxb7 {[%emt 0:00:02]} Bc7 {[%emt 0:00:02]} 42. Re3+ {[%emt 0:00:02]} Kd7 {[%emt 0:00:03]} 43. c6+ {[%emt 0:00:01]} Kxc6 {[%emt 0:00:02]} 44. Rxe8 {[%emt 0:00:01]} Kxb7 {[%emt 0:00:02]} 45. Re7 {[%emt 0:00:01]} 1-0

[Event "RUS-ch Blitz Women 2018"]
[Site "Sochi"]
[Date "2018.10.07"]
[Round "7"]
[White "Kovanova, Baira"]
[Black "Miroshnik, Ekaterina"]
[Result "1/2-1/2"]
[ECO "A13"]
[WhiteElo "2350"]
[BlackElo "2023"]
[Annotator "NA"]
[PlyCount "41"]
[EventDate "2018.10.07"]
[EventType "swiss"]
[EventCountry "RUS"]
[SourceTitle "playchess.com"]
[Source "ChessBase"]
[SourceQuality "1"]
[TimeControl "180+2"]

1. c4 {[%emt 0:00:00]} e6 {[%emt 0:00:00]} 2. Nc3 {[%emt 0:00:02]} d5 {[%emt 0:00:02]} 3. e3 {[%emt 0:00:02]} Nf6 {[%emt 0:00:02]} 4. Nf3 {[%emt 0:00:02]} c5 {[%emt 0:00:02]} 5. cxd5 {[%emt 0:00:02]} exd5 {[%emt 0:00:02]} 6. d4 {[%emt 0:00:02]} Be7 {[%emt 0:00:02]} 7. Bb5+ {[%emt 0:00:02]} Nc6 {[%emt 0:00:05]} 8. Ne5 {[%emt 0:00:20]} Bd7 {[%emt 0:00:04]} 9. Nxd7 {[%emt 0:00:02]} Qxd7 {[%emt 0:00:04]} 10. dxc5 {[%emt 0:00:24]} Bxc5 {[%emt 0:00:05]} 11. O-O {[%emt 0:00:02]} O-O {[%emt 0:00:02]} 12. b3 {[%emt 0:00:13]} a6 {[%emt 0:00:02]} 13. Be2 {[%emt 0:00:13]} d4 {[%emt 0:00:07]} 14. Na4 {[%emt 0:00:03]} Ba7 {[%emt 0:00:05]} 15. Bf3 {[%emt 0:00:32]} Ne5 {[%emt 0:00:13]} 16. exd4 {[%emt 0:00:50]} Bxd4 {[%emt 0:00:40]} 17. Bb2 {[%emt 0:00:01]} Bxb2 {[%emt 0:00:28]} 18. Nxb2 {[%emt 0:00:01]} Qxd1 {[%emt 0:00:12]} 19. Rfxd1 {[%emt 0:00:09]} Nxf3+ {[%emt 0:00:02]} 20. gxf3 {[%emt 0:00:01]} Rfd8 {[%emt 0:00:00]} 21. Nc4 {[%emt 0:00:02]} 1/2-1/2

[Event "RUS-ch Blitz Women 2018"]
[Site "Sochi"]
[Date "2018.10.07"]
[Round "7"]
[White "Belenkaya, Dina"]
[Black "Borisova, Ekaterina"]
[Result "0-1"]
[ECO "B52"]
[WhiteElo "2329"]
[BlackElo "2256"]
[Annotator "ChessBase"]
[PlyCount "72"]
[EventDate "2018.10.07"]
[EventType "swiss"]
[EventCountry "RUS"]
[SourceTitle "playchess.com"]
[Source "ChessBase"]
[SourceQuality "1"]
[TimeControl "180+2"]

1. e4 {[%emt 0:00:00]} c5 {[%emt 0:00:00]} 2. Nf3 {[%emt 0:00:01]} d6 {[%emt 0:00:00]} 3. Bb5+ {[%emt 0:00:01]} Bd7 {[%emt 0:00:00]} 4. Bxd7+ {[%emt 0:00:02]} Qxd7 {[%emt 0:00:01]} 5. O-O {[%emt 0:00:03]} Nc6 {[%emt 0:00:00]} 6. c3 {[%emt 0:00:02]} Nf6 {[%emt 0:00:01]} 7. Qe2 {[%emt 0:00:06]} e6 {[%emt 0:00:02]} 8. d4 {[%emt 0:00:01]} cxd4 {[%emt 0:00:01]} 9. cxd4 {[%emt 0:00:01]} d5 {[%emt 0:00:01]} 10. e5 {[%emt 0:00:01]} Ne4 {[%emt 0:00:00]} 11. Be3 {[%emt 0:00:03]} Be7 {[%emt 0:00:09]} 12. Ne1 {[%emt 0:00:02]} f6 {[%emt 0:00:09]} 13. f3 {[%emt 0:00:06]} Ng5 {[%emt 0:00:01]} 14. Nd3 {[%emt 0:00:04]} fxe5 {[%emt 0:00:03]} 15. dxe5 {[%emt 0:00:08]} O-O {[%emt 0:00:11]} 16. Nd2 {[%emt 0:00:07]} Rac8 {[%emt 0:00:08]} 17. Rac1 {[%emt 0:00:02]} b6 {[%emt 0:00:01]} 18. Nb3 {[%emt 0:00:23]} Rc7 {[%emt 0:00:01]} 19. Qd2 {[%emt 0:00:12]} Nf7 {[%emt 0:00:02]} 20. f4 {[%emt 0:00:02]} Nh6 {[%emt 0:00:03]} 21. Bf2 {[%emt 0:00:31]} Ng4 {[%emt 0:00:09]} 22. Rc2 {[%emt 0:00:28]} Nxf2 {[%emt 0:00:11]} 23. Rxf2 {[%emt 0:00:04]} a5 {[%emt 0:00:12]} 24. a4 {[%emt 0:00:02]} Nb4 {[%emt 0:00:15]} 25. Rxc7 {[%emt 0:00:04]} Qxc7 {[%emt 0:00:02]} 26. Rf1 {[%emt 0:00:05]} Qc4 {[%emt 0:00:15]} 27. Nxb4 {[%emt 0:00:12]} Bxb4 {[%emt 0:00:01]} 28. Qe3 {[%emt 0:00:03]} d4 {[%emt 0:00:07]} 29. Qh3 {[%emt 0:00:27]} d3 {[%emt 0:00:06]} 30. Nc1 {[%emt 0:00:14]} d2 {[%emt 0:00:02]} 31. Nd3 {[%emt 0:00:01]} Rd8 {[%emt 0:00:11]} 32. Nf2 {[%emt 0:00:07]} Bc5 {[%emt 0:00:06]} 33. Rd1 {[%emt 0:00:03]} Qe2 {[%emt 0:00:07]} 34. Qxe6+ {[%emt 0:00:04]} Kh8 {[%emt 0:00:00]} 35. Kh1 {[%emt 0:00:12]} Bxf2 {[%emt 0:00:05]} 36. Qe7 {[%emt 0:00:04]} Qxd1# {[%emt 0:00:03]} 0-1

[Event "RUS-ch Blitz Women 2018"]
[Site "Sochi"]
[Date "2018.10.07"]
[Round "7"]
[White "Tomilova, Elena"]
[Black "Protopopova, Anastasiya"]
[Result "1/2-1/2"]
[ECO "C24"]
[WhiteElo "2328"]
[BlackElo "2308"]
[Annotator "ChessBase"]
[PlyCount "101"]
[EventDate "2018.10.07"]
[EventType "swiss"]
[EventCountry "RUS"]
[SourceTitle "playchess.com"]
[Source "ChessBase"]
[SourceQuality "1"]
[TimeControl "180+2"]

1. e4 {[%emt 0:00:00]} e5 {[%emt 0:00:00]} 2. Bc4 {[%emt 0:00:01]} Nf6 {[%emt 0:00:03]} 3. d3 {[%emt 0:00:01]} c6 {[%emt 0:00:02]} 4. Nf3 {[%emt 0:00:02]} d5 {[%emt 0:00:11]} 5. Bb3 {[%emt 0:00:01]} Bd6 {[%emt 0:00:07]} 6. h3 {[%emt 0:00:10]} O-O {[%emt 0:00:05]} 7. Nbd2 {[%emt 0:00:08]} Nbd7 {[%emt 0:00:14]} 8. O-O {[%emt 0:00:04]} Nc5 {[%emt 0:00:02]} 9. exd5 {[%emt 0:00:10]} Nxb3 {[%emt 0:00:06]} 10. axb3 {[%emt 0:00:12]} cxd5 {[%emt 0:00:02]} 11. Re1 {[%emt 0:00:02]} Re8 {[%emt 0:00:02]} 12. Nf1 {[%emt 0:00:06]} Qc7 {[%emt 0:00:03]} 13. Ne3 {[%emt 0:00:08]} Bd7 {[%emt 0:00:04]} 14. c3 {[%emt 0:00:09]} a6 {[%emt 0:00:05]} 15. b4 Qb6 16. d4 {[%emt 0:00:34]} e4 {[%emt 0:00:32]} 17. Nh2 {[%emt 0:00:03]} a5 {[%emt 0:00:07]} 18. bxa5 {[%emt 0:00:06]} Rxa5 {[%emt 0:00:02]} 19. Rxa5 {[%emt 0:00:02]} Qxa5 {[%emt 0:00:00]} 20. Nhg4 {[%emt 0:00:03]} Nxg4 {[%emt 0:00:04]} 21. hxg4 {[%emt 0:00:04]} Be6 {[%emt 0:00:18]} 22. Nf5 {[%emt 0:00:06]} Bf8 {[%emt 0:00:09]} 23. Qb3 {[%emt 0:00:04]} b5 {[%emt 0:00:05]} 24. Bf4 {[%emt 0:00:05]} Rd8 {[%emt 0:00:20]} 25. Qd1 {[%emt 0:00:14]} b4 {[%emt 0:00:06]} 26. Qa1 {[%emt 0:00:03]} Qb5 {[%emt 0:00:06]} 27. Qa7 {[%emt 0:00:06]} Rd7 {[%emt 0:00:06]} 28. Qa8 {[%emt 0:00:02]} bxc3 {[%emt 0:00:11]} 29. bxc3 {[%emt 0:00:03]} Qb7 {[%emt 0:00:04]} 30. Qe8 {[%emt 0:00:04]} Bxf5 {[%emt 0:00:15]} 31. gxf5 {[%emt 0:00:01]} Re7 {[%emt 0:00:02]} 32. Qd8 {[%emt 0:00:05]} Qd7 {[%emt 0:00:07]} 33. Qb8 {[%emt 0:00:02]} Re8 {[%emt 0:00:01]} 34. Qc7 {[%emt 0:00:10]} Qxf5 {[%emt 0:00:05]} 35. Be5 {[%emt 0:00:19]} Rc8 {[%emt 0:00:01]} 36. Qb7 {[%emt 0:00:03]} Qe6 {[%emt 0:00:11]} 37. Re3 {[%emt 0:00:02]} h6 {[%emt 0:00:06]} 38. Rg3 {[%emt 0:00:03]} Kh7 {[%emt 0:00:01]} 39. Qb3 {[%emt 0:00:10]} f6 {[%emt 0:00:02]} 40. Bb8 {[%emt 0:00:02]} Qc6 {[%emt 0:00:03]} 41. Bf4 {[%emt 0:00:05]} Bd6 {[%emt 0:00:06]} 42. Bxd6 {[%emt 0:00:03]} Qxd6 {[%emt 0:00:00]} 43. Qb7 {[%emt 0:00:02]} Rc7 {[%emt 0:00:02]} 44. Qb8 {[%emt 0:00:03]} Qc6 {[%emt 0:00:04]} 45. Qf8 {[%emt 0:00:03]} Rd7 {[%emt 0:00:04]} 46. Qe8 {[%emt 0:00:02]} Qc7 {[%emt 0:00:03]} 47. Qg6+ {[%emt 0:00:02]} Kh8 {[%emt 0:00:01]} 48. Qe8+ {[%emt 0:00:01]} Kh7 {[%emt 0:00:01]} 49. Qg6+ {[%emt 0:00:01]} Kh8 {[%emt 0:00:03]} 50. Qe8+ {[%emt 0:00:01]} Kh7 {[%emt 0:00:01]} 51. Qg6+ {[%emt 0:00:02]} 1/2-1/2

[Event "RUS-ch Blitz Women 2018"]
[Site "Sochi"]
[Date "2018.10.07"]
[Round "7"]
[White "Sirotkina, Nina"]
[Black "Sukhareva, Evgeniya"]
[Result "1/2-1/2"]
[ECO "A45"]
[WhiteElo "2188"]
[BlackElo "2125"]
[Annotator "ChessBase"]
[PlyCount "112"]
[EventDate "2018.10.07"]
[EventType "swiss"]
[EventCountry "RUS"]
[SourceTitle "playchess.com"]
[Source "ChessBase"]
[SourceQuality "1"]
[TimeControl "180+2"]

1. d4 {[%emt 0:00:00]} Nf6 {[%emt 0:00:02]} 2. Bf4 {[%emt 0:00:01]} d6 {[%emt 0:00:03]} 3. Nd2 {[%emt 0:00:03]} g6 {[%emt 0:00:00]} 4. e4 {[%emt 0:00:02]} Bg7 {[%emt 0:00:01]} 5. c3 {[%emt 0:00:04]} O-O {[%emt 0:00:03]} 6. Ngf3 {[%emt 0:00:02]} Nfd7 {[%emt 0:00:02]} 7. Bc4 {[%emt 0:00:07]} c6 {[%emt 0:00:02]} 8. a4 {[%emt 0:00:02]} c5 {[%emt 0:00:08]} 9. dxc5 {[%emt 0:00:13]} Nxc5 {[%emt 0:00:02]} 10. Qe2 {[%emt 0:00:05]} Be6 {[%emt 0:00:09]} 11. O-O {[%emt 0:00:05]} Nc6 {[%emt 0:00:05]} 12. Rfd1 {[%emt 0:00:09]} Rc8 {[%emt 0:00:02]} 13. e5 {[%emt 0:00:09]} d5 {[%emt 0:00:07]} 14. Bd3 {[%emt 0:00:06]} Nxd3 {[%emt 0:00:11]} 15. Qxd3 {[%emt 0:00:02]} Qd7 {[%emt 0:00:15]} 16. Qe2 {[%emt 0:00:04]} Rfd8 {[%emt 0:00:03]} 17. Nb3 {[%emt 0:00:01]} b6 {[%emt 0:00:01]} 18. Nbd4 {[%emt 0:00:02]} Bg4 {[%emt 0:00:07]} 19. h3 {[%emt 0:00:05]} Bxf3 {[%emt 0:00:09]} 20. Nxf3 {[%emt 0:00:02]} Qf5 {[%emt 0:00:08]} 21. Bg3 {[%emt 0:00:04]} Na5 {[%emt 0:00:02]} 22. Nd4 {[%emt 0:00:04]} Qg5 {[%emt 0:00:28]} 23. e6 {[%emt 0:00:04]} f5 {[%emt 0:00:18]} 24. Be5 {[%emt 0:00:10]} Bxe5 {[%emt 0:00:24]} 25. Qxe5 {[%emt 0:00:01]} Nc4 {[%emt 0:00:01]} 26. Qe2 {[%emt 0:00:02]} f4 {[%emt 0:00:02]} 27. Nf3 {[%emt 0:00:09]} Qf6 {[%emt 0:00:02]} 28. Rd4 {[%emt 0:00:05]} Rd6 {[%emt 0:00:03]} 29. Re1 {[%emt 0:00:06]} g5 {[%emt 0:00:06]} 30. Nh2 {[%emt 0:00:18]} Rcc6 {[%emt 0:00:11]} 31. Ng4 {[%emt 0:00:02]} Qxe6 {[%emt 0:00:09]} 32. Qd1 {[%emt 0:00:12]} Qd7 {[%emt 0:00:14]} 33. Ne5 {[%emt 0:00:04]} Nxe5 {[%emt 0:00:01]} 34. Rxe5 {[%emt 0:00:00]} h6 {[%emt 0:00:02]} 35. Qe2 {[%emt 0:00:07]} Re6 {[%emt 0:00:07]} 36. Qg4 {[%emt 0:00:14]} Rcd6 {[%emt 0:00:03]} 37. Qf5 {[%emt 0:00:13]} Rxe5 {[%emt 0:00:04]} 38. Qxe5 {[%emt 0:00:01]} e6 {[%emt 0:00:05]} 39. h4 {[%emt 0:00:03]} Qe7 {[%emt 0:00:03]} 40. hxg5 {[%emt 0:00:03]} hxg5 {[%emt 0:00:01]} 41. g3 {[%emt 0:00:02]} fxg3 {[%emt 0:00:03]} 42. fxg3 {[%emt 0:00:05]} Rd7 {[%emt 0:00:01]} 43. Rg4 {[%emt 0:00:02]} Qc5+ {[%emt 0:00:02]} 44. Kg2 {[%emt 0:00:03]} Rg7 {[%emt 0:00:03]} 45. Qxe6+ {[%emt 0:00:01]} Kf8 {[%emt 0:00:02]} 46. Qf6+ {[%emt 0:00:04]} Rf7 {[%emt 0:00:02]} 47. Qd8+ {[%emt 0:00:02]} Kg7 {[%emt 0:00:02]} 48. Rxg5+ {[%emt 0:00:01]} Kh6 {[%emt 0:00:03]} 49. Qxd5 {[%emt 0:00:15]} Qf2+ {[%emt 0:00:06]} 50. Kh3 {[%emt 0:00:03]} Qf1+ {[%emt 0:00:02]} 51. Kg4 {[%emt 0:00:05]} Qe2+ {[%emt 0:00:02]} 52. Kh3 {[%emt 0:00:01]} Qf1+ {[%emt 0:00:00]} 53. Kg4 {[%emt 0:00:01]} Qe2+ {[%emt 0:00:02]} 54. Kh3 {[%emt 0:00:04]} Qf1+ {[%emt 0:00:01]} 55. Kg4 {[%emt 0:00:17]} Qe2+ {[%emt 0:00:02]} 56. Kh4 Qf1 1/2-1/2

[Event "RUS-ch Blitz Women 2018"]
[Site "Sochi"]
[Date "2018.10.07"]
[Round "7"]
[White "Vinokur, Yuliya"]
[Black "Maletina, Tatiana"]
[Result "1-0"]
[ECO "D11"]
[WhiteElo "2170"]
[BlackElo "2270"]
[Annotator "NA"]
[PlyCount "125"]
[EventDate "2018.10.07"]
[EventType "swiss"]
[EventCountry "RUS"]
[SourceTitle "playchess.com"]
[Source "ChessBase"]
[SourceQuality "1"]
[TimeControl "180+2"]

1. d4 {[%emt 0:00:00]} d5 {[%emt 0:00:00]} 2. c4 {[%emt 0:00:01]} c6 {[%emt 0:00:00]} 3. Nf3 {[%emt 0:00:02]} Nf6 {[%emt 0:00:00]} 4. Qc2 {[%emt 0:00:01]} g6 {[%emt 0:00:02]} 5. Bf4 {[%emt 0:00:03]} Bg7 {[%emt 0:00:02]} 6. e3 {[%emt 0:00:02]} Bf5 {[%emt 0:00:01]} 7. Qb3 {[%emt 0:00:02]} Qb6 {[%emt 0:00:01]} 8. Nc3 {[%emt 0:00:05]} Nbd7 {[%emt 0:00:02]} 9. c5 {[%emt 0:00:03]} Qxb3 {[%emt 0:00:04]} 10. axb3 {[%emt 0:00:01]} O-O {[%emt 0:00:05]} 11. b4 {[%emt 0:00:02]} a6 {[%emt 0:00:01]} 12. h3 {[%emt 0:00:08]} h6 {[%emt 0:00:08]} 13. Be2 {[%emt 0:00:10]} Ne4 {[%emt 0:00:02]} 14. Na4 {[%emt 0:00:27]} g5 {[%emt 0:00:08]} 15. Bh2 {[%emt 0:00:03]} Rfe8 {[%emt 0:00:02]} 16. g4 {[%emt 0:00:03]} Bg6 {[%emt 0:00:01]} 17. O-O {[%emt 0:00:26]} f5 {[%emt 0:00:08]} 18. gxf5 {[%emt 0:00:15]} Bxf5 {[%emt 0:00:02]} 19. Kg2 {[%emt 0:00:02]} Kh7 {[%emt 0:00:16]} 20. Ne5 {[%emt 0:00:11]} Nxe5 {[%emt 0:00:05]} 21. dxe5 {[%emt 0:00:02]} a5 {[%emt 0:00:42]} 22. Nb6 {[%emt 0:00:09]} Ra7 {[%emt 0:00:08]} 23. f3 {[%emt 0:00:10]} Nd2 {[%emt 0:00:01]} 24. Rfd1 {[%emt 0:00:01]} Nb3 {[%emt 0:00:03]} 25. Ra3 {[%emt 0:00:04]} a4 {[%emt 0:00:20]} 26. Nxa4 {[%emt 0:00:09]} Rea8 {[%emt 0:00:01]} 27. Rxb3 {[%emt 0:00:20]} Rxa4 {[%emt 0:00:01]} 28. Bd3 {[%emt 0:00:07]} Bxd3 {[%emt 0:00:03]} 29. Rdxd3 {[%emt 0:00:01]} Ra1 {[%emt 0:00:15]} 30. b5 {[%emt 0:00:10]} Rc1 {[%emt 0:00:01]} 31. bxc6 {[%emt 0:00:04]} bxc6 {[%emt 0:00:02]} 32. Rdc3 {[%emt 0:00:16]} Rd1 {[%emt 0:00:01]} 33. Rc2 {[%emt 0:00:03]} Re1 {[%emt 0:00:18]} 34. Bg3 {[%emt 0:00:01]} Rd1 {[%emt 0:00:05]} 35. Rb7 {[%emt 0:00:01]} Bf8 {[%emt 0:00:06]} 36. Rb6 {[%emt 0:00:06]} Raa1 {[%emt 0:00:05]} 37. Bf2 {[%emt 0:00:06]} Bg7 {[%emt 0:00:01]} 38. f4 {[%emt 0:00:02]} d4 {[%emt 0:00:03]} 39. exd4 {[%emt 0:00:02]} gxf4 {[%emt 0:00:01]} 40. Rxc6 {[%emt 0:00:02]} Kg8 {[%emt 0:00:19]} 41. Rb6 {[%emt 0:00:00]} Rac1 {[%emt 0:00:08]} 42. Rxc1 {[%emt 0:00:00]} Rxc1 {[%emt 0:00:01]} 43. Rb3 {[%emt 0:00:00]} Kf7 {[%emt 0:00:03]} 44. Kf3 {[%emt 0:00:00]} h5 {[%emt 0:00:03]} 45. Kxf4 {[%emt 0:00:00]} Rf1 {[%emt 0:00:03]} 46. Kf3 {[%emt 0:00:00]} Ke6 {[%emt 0:00:01]} 47. Rc3 {[%emt 0:00:00]} Bh6 {[%emt 0:00:08]} 48. Ke2 {[%emt 0:00:00]} Rb1 {[%emt 0:00:02]} 49. Rc2 {[%emt 0:00:00]} Kd7 {[%emt 0:00:01]} 50. Be3 {[%emt 0:00:00]} Bg7 {[%emt 0:00:03]} 51. c6+ {[%emt 0:00:00]} Kc7 {[%emt 0:00:01]} 52. e6 {[%emt 0:00:03]} Rh1 {[%emt 0:00:03]} 53. Bf4+ {[%emt 0:00:02]} Kc8 {[%emt 0:00:00]} 54. d5 {[%emt 0:00:03]} Rg1 {[%emt 0:00:04]} 55. Kd3 {[%emt 0:00:03]} Rf1 {[%emt 0:00:03]} 56. Be3 {[%emt 0:00:06]} Rd1+ {[%emt 0:00:03]} 57. Ke4 {[%emt 0:00:01]} Rf1 {[%emt 0:00:06]} 58. d6 {[%emt 0:00:05]} Bf6 {[%emt 0:00:05]} 59. d7+ Kc7 60. Bb6+ {[%emt 0:00:04]} Kxb6 {[%emt 0:00:03]} 61. d8=Q+ {[%emt 0:00:02]} Kb5 {[%emt 0:00:01]} 62. Qd3+ {[%emt 0:00:02]} Kb6 {[%emt 0:00:01]} 63. Qxf1 {[%emt 0:00:01]} 1-0

[Event "RUS-ch Blitz Women 2018"]
[Site "Sochi"]
[Date "2018.10.07"]
[Round "7"]
[White "Ivanova, Karina"]
[Black "Guseva, Marina"]
[Result "0-1"]
[ECO "A06"]
[WhiteElo "2124"]
[BlackElo "2292"]
[Annotator "ChessBase"]
[PlyCount "56"]
[EventDate "2018.10.07"]
[EventType "swiss"]
[EventCountry "RUS"]
[SourceTitle "playchess.com"]
[Source "ChessBase"]
[SourceQuality "1"]
[TimeControl "180+2"]

1. Nf3 {[%emt 0:00:00]} d5 {[%emt 0:00:00]} 2. g3 {[%emt 0:00:01]} Bg4 {[%emt 0:00:00]} 3. Bg2 {[%emt 0:00:01]} Nd7 {[%emt 0:00:01]} 4. O-O {[%emt 0:00:04]} c6 {[%emt 0:00:01]} 5. h3 {[%emt 0:00:02]} Bh5 {[%emt 0:00:01]} 6. d4 {[%emt 0:00:05]} e6 {[%emt 0:00:02]} 7. c4 {[%emt 0:00:02]} Ngf6 {[%emt 0:00:02]} 8. Nc3 {[%emt 0:00:02]} Be7 {[%emt 0:00:02]} 9. Qb3 {[%emt 0:00:06]} Qb6 {[%emt 0:00:06]} 10. Qxb6 {[%emt 0:00:22]} axb6 {[%emt 0:00:02]} 11. Nd2 {[%emt 0:00:05]} Bg6 {[%emt 0:00:29]} 12. e4 {[%emt 0:00:06]} dxe4 {[%emt 0:00:02]} 13. Ndxe4 {[%emt 0:00:03]} Nxe4 {[%emt 0:00:01]} 14. Nxe4 {[%emt 0:00:03]} O-O {[%emt 0:00:04]} 15. Be3 {[%emt 0:00:07]} Nf6 {[%emt 0:00:06]} 16. Bg5 {[%emt 0:00:42]} Bxe4 {[%emt 0:00:37]} 17. Bxe4 {[%emt 0:00:02]} Nxe4 {[%emt 0:00:04]} 18. Bxe7 {[%emt 0:00:06]} Rfe8 {[%emt 0:00:01]} 19. Bb4 {[%emt 0:00:05]} c5 {[%emt 0:00:26]} 20. dxc5 {[%emt 0:00:07]} bxc5 {[%emt 0:00:01]} 21. Be1 {[%emt 0:00:04]} Red8 {[%emt 0:00:07]} 22. b4 {[%emt 0:00:35]} cxb4 {[%emt 0:00:09]} 23. Bxb4 {[%emt 0:00:09]} Rd4 {[%emt 0:00:11]} 24. Rfc1 b5 {[%emt 0:00:32]} 25. a4 {[%emt 0:00:38]} bxa4 26. Be1 {[%emt 0:00:07]} Nc5 {[%emt 0:00:15]} 27. Ra3 {[%emt 0:00:05]} f6 {[%emt 0:00:06]} 28. Bb4 {[%emt 0:00:03]} Nd3 {[%emt 0:00:16]} 0-1